[Event "18th Charleroi Experts 2019"]
[Site "Charleroi"]
[Date "2019.08.01"]
[Round "7.2"]
[White "Hovhannisyan, Mher"]
[Black "Sterck, Arno"]
[Result "1/2-1/2"]
[ECO "A21"]
[WhiteElo "2444"]
[BlackElo "2316"]
[Annotator "NA"]
[PlyCount "37"]
[EventDate "2019.07.22"]
[EventType "tourn"]
[EventCountry "BEL"]
[SourceTitle "playchess.com"]
[Source "ChessBase"]
[SourceQuality "1"]
[TimeControl "40/5400+30:1800+30"]

1. c4 {[%emt 0:08:33]} e5 {[%emt 0:00:00]} 2. e3 {[%emt 0:04:50]} Nf6 {[%emt 0:02:21]} 3. Nc3 {[%emt 0:02:17]} Bb4 {[%emt 0:02:48]} 4. Qc2 {[%emt 0:06:50]} O-O {[%emt 0:00:57]} 5. a3 {[%emt 0:01:33]} Bxc3 {[%emt 0:01:23]} 6. Qxc3 {[%emt 0:00:51]} Re8 {[%emt 0:00:07]} 7. d3 {[%emt 0:05:41]} Nc6 {[%emt 0:05:46]} 8. e4 {[%emt 0:08:29]} a5 {[%emt 0:02:09]} 9. Nf3 {[%emt 0:04:48]} d6 {[%emt 0:01:05]} 10. h3 {[%emt 0:02:38]} Nd7 {[%emt 0:02:33]} 11. Bg5 {[%emt 0:11:16]} f6 {[%emt 0:03:25]} 12. Be3 {[%emt 0:00:02]} Nc5 {[%emt 0:04:18]} 13. g4 {[%emt 0:03:47]} Ne6 {[%emt 0:11:01]} 14. Be2 {[%emt 0:02:59]} Qe7 {[%emt 0:03:17]} 15. Bd1 {[%emt 0:04:37]} Bd7 {[%emt 0:07:20]} 16. Bc2 {[%emt 0:03:25]} Nb4 {[%emt 0:18:30]} 17. Bd1 {[%emt 0:01:47]} Nc6 {[%emt 0:00:48]} 18. Bc2 {[%emt 0:00:11]} Nb4 {[%emt 0:00:05]} 19. Bd1 {[%emt 0:00:24]} 1/2-1/2

[Event "18th Charleroi Experts 2019"]
[Site "Charleroi"]
[Date "2019.08.01"]
[Round "7.3"]
[White "Real, Thibault"]
[Black "Dardha, Daniel"]
[Result "0-1"]
[ECO "A65"]
[WhiteElo "2262"]
[BlackElo "2420"]
[Annotator "NA"]
[PlyCount "78"]
[EventDate "2019.07.22"]
[EventType "tourn"]
[EventCountry "BEL"]
[SourceTitle "playchess.com"]
[Source "ChessBase"]
[SourceQuality "1"]
[TimeControl "40/5400+30:1800+30"]

1. d4 {[%emt 0:00:00]} Nf6 {[%emt 0:00:00]} 2. c4 {[%emt 0:00:00]} c5 {[%emt 0:00:00]} 3. d5 {[%emt 0:00:07]} e6 {[%emt 0:00:00]} 4. Nc3 {[%emt 0:00:08]} exd5 {[%emt 0:00:00]} 5. cxd5 {[%emt 0:00:05]} d6 {[%emt 0:00:05]} 6. e4 {[%emt 0:00:10]} g6 {[%emt 0:00:07]} 7. Nge2 {[%emt 0:00:08]} Bg7 {[%emt 0:00:00]} 8. Ng3 {[%emt 0:00:00]} O-O {[%emt 0:00:00]} 9. Be2 {[%emt 0:00:00]} Na6 {[%emt 0:01:50]} 10. O-O {[%emt 0:00:00]} Nc7 {[%emt 0:00:02]} 11. Bg5 {[%emt 0:04:22]} h6 {[%emt 0:02:54]} 12. Be3 {[%emt 0:00:06]} Re8 {[%emt 0:00:23]} 13. Qd2 {[%emt 0:07:51]} Kh7 {[%emt 0:03:48]} 14. h3 {[%emt 0:00:37]} b5 {[%emt 0:04:48]} 15. f3 {[%emt 0:05:44]} Bd7 {[%emt 0:08:09]} 16. e5 {[%emt 0:15:34]} Rxe5 {[%emt 0:04:28]} 17. Bf4 {[%emt 0:00:23]} Nfxd5 {[%emt 0:01:16]} 18. Bxe5 {[%emt 0:00:20]} Bxe5 {[%emt 0:00:04]} 19. f4 {[%emt 0:10:58]} Bd4+ {[%emt 0:01:14]} 20. Kh2 {[%emt 0:00:25]} Ne3 {[%emt 0:07:15]} 21. Bf3 {[%emt 0:08:46]} Nxf1+ 22. Rxf1 {[%emt 0:00:08]} Rc8 {[%emt 0:04:28]} 23. Nce2 {[%emt 0:04:22]} Bf6 {[%emt 0:03:33]} 24. Qxd6 {[%emt 0:06:06]} Ne8 {[%emt 0:01:55]} 25. Qd2 {[%emt 0:04:04]} Bc6 {[%emt 0:00:39]} 26. Qc2 {[%emt 0:13:32]} Bxf3 {[%emt 0:01:02]} 27. Rxf3 {[%emt 0:03:39]} c4 {[%emt 0:00:42]} 28. Ne4 {[%emt 0:00:51]} Nd6 {[%emt 0:00:52]} 29. f5 {[%emt 0:02:17]} g5 {[%emt 0:02:34]} 30. N2g3 {[%emt 0:03:36]} Nxe4 {[%emt 0:02:05]} 31. Qxe4 {[%emt 0:01:54]} Qd6 {[%emt 0:01:20]} 32. Qb7 {[%emt 0:00:36]} Rc7 {[%emt 0:00:46]} 33. Qxb5 {[%emt 0:00:15]} Be5 {[%emt 0:00:22]} 34. f6 {[%emt 0:06:53]} h5 {[%emt 0:00:45]} 35. Kg1 {[%emt 0:00:06]} Bxg3 {[%emt 0:01:14]} 36. Qxg5 {[%emt 0:03:24]} Qd4+ {[%emt 0:00:07]} 37. Qe3 {[%emt 0:00:06]} Qxe3+ {[%emt 0:00:07]} 38. Rxe3 {[%emt 0:00:04]} h4 {[%emt 0:00:06]} 39. Re7 {[%emt 0:00:28]} Kg6 {[%emt 0:50:30]} 0-1

[Event "18th Charleroi Experts 2019"]
[Site "Charleroi"]
[Date "2019.08.01"]
[Round "7.4"]
[White "Van der Stricht, Geert"]
[Black "Hamblok, Roel"]
[Result "1/2-1/2"]
[ECO "E56"]
[WhiteElo "2374"]
[BlackElo "2261"]
[Annotator "NA"]
[PlyCount "41"]
[EventDate "2019.07.22"]
[EventType "tourn"]
[EventCountry "BEL"]
[SourceTitle "playchess.com"]
[Source "ChessBase"]
[SourceQuality "1"]
[TimeControl "40/5400+30:1800+30"]

1. d4 {[%emt 0:00:00]} Nf6 {[%emt 0:00:00]} 2. c4 {[%emt 0:00:00]} e6 {[%emt 0:00:00]} 3. Nc3 {[%emt 0:00:18]} Bb4 {[%emt 0:00:00]} 4. e3 {[%emt 0:00:07]} O-O {[%emt 0:00:10]} 5. Bd3 {[%emt 0:00:06]} d5 {[%emt 0:01:00]} 6. Nf3 {[%emt 0:00:43]} dxc4 {[%emt 0:01:02]} 7. Bxc4 {[%emt 0:00:18]} c5 {[%emt 0:00:24]} 8. O-O {[%emt 0:00:16]} Nc6 {[%emt 0:00:43]} 9. a3 {[%emt 0:04:52]} Ba5 {[%emt 0:01:28]} 10. Na4 {[%emt 0:10:50]} cxd4 {[%emt 0:07:56]} 11. exd4 {[%emt 0:00:20]} h6 {[%emt 0:00:12]} 12. b4 {[%emt 0:26:11]} Bc7 {[%emt 0:01:39]} 13. Bb2 {[%emt 0:00:22]} Ne7 {[%emt 0:13:19]} 14. Ne5 {[%emt 0:17:03]} b6 {[%emt 0:07:21]} 15. Qe2 {[%emt 0:10:54]} Bb7 {[%emt 0:05:56]} 16. Rfd1 {[%emt 0:02:00]} Nfd5 {[%emt 0:06:56]} 17. g3 {[%emt 0:17:51]} Rb8 {[%emt 0:28:21]} 18. Rac1 {[%emt 0:01:11]} Qd6 {[%emt 0:02:28]} 19. Bd3 {[%emt 0:02:11]} Rbe8 {[%emt 0:11:09]} 20. b5 {[%emt 0:00:57]} Bb8 {[%emt 0:00:43]} 21. Bb1 {[%emt 0:04:00]} 1/2-1/2

[Event "18th Charleroi Experts 2019"]
[Site "Charleroi"]
[Date "2019.08.01"]
[Round "7.5"]
[White "Ringoir, Tanguy"]
[Black "Dgebuadze, Alexandre"]
[Result "1/2-1/2"]
[ECO "E11"]
[WhiteElo "2503"]
[BlackElo "2495"]
[Annotator "ChessBase"]
[PlyCount "25"]
[EventDate "2019.07.22"]
[EventType "tourn"]
[EventCountry "BEL"]
[SourceTitle "playchess.com"]
[Source "ChessBase"]
[SourceQuality "1"]
[TimeControl "40/5400+30:1800+30"]

1. d4 {[%emt 0:00:00]} Nf6 {[%emt 0:00:00]} 2. c4 {[%emt 0:00:00]} e6 {[%emt 0:00:06]} 3. Nf3 {[%emt 0:00:00]} Bb4+ {[%emt 0:02:50]} 4. Bd2 {[%emt 0:00:00]} Be7 {[%emt 0:00:56]} 5. g3 {[%emt 0:01:53]} d5 {[%emt 0:01:50]} 6. Bg2 {[%emt 0:00:05]} c6 {[%emt 0:00:53]} 7. Qc2 {[%emt 0:00:27]} O-O {[%emt 0:00:51]} 8. O-O {[%emt 0:00:06]} Nbd7 {[%emt 0:00:30]} 9. Bf4 {[%emt 0:00:23]} Nh5 {[%emt 0:00:08]} 10. Bc1 {[%emt 0:00:11]} Nhf6 {[%emt 0:00:05]} 11. Bf4 {[%emt 0:00:40]} Nh5 {[%emt 0:00:05]} 12. Bc1 {[%emt 0:00:02]} Nhf6 {[%emt 0:00:07]} 13. Bf4 {[%emt 0:00:04]} 1/2-1/2

[Event "18th Charleroi Experts 2019"]
[Site "Charleroi"]
[Date "2019.08.02"]
[Round "8.1"]
[White "Cools, Gorik"]
[Black "Dgebuadze, Alexandre"]
[Result "1-0"]
[ECO "A08"]
[WhiteElo "2280"]
[BlackElo "2495"]
[Annotator "ChessBase"]
[PlyCount "71"]
[EventDate "2019.07.22"]
[EventType "tourn"]
[EventCountry "BEL"]
[SourceTitle "playchess.com"]
[Source "ChessBase"]
[SourceQuality "1"]
[TimeControl "40/5400+30:1800+30"]

1. e4 {[%emt 0:00:00]} e6 {[%emt 0:00:00]} 2. d3 {[%emt 0:00:00]} d5 {[%emt 0:00:03]} 3. Nd2 {[%emt 0:00:00]} c5 {[%emt 0:00:18]} 4. g3 {[%emt 0:00:08]} g6 {[%emt 0:06:16]} 5. Bg2 {[%emt 0:00:26]} Bg7 {[%emt 0:00:14]} 6. Ngf3 {[%emt 0:00:14]} Nc6 {[%emt 0:02:25]} 7. O-O {[%emt 0:00:08]} Nf6 {[%emt 0:00:12]} 8. Re1 {[%emt 0:01:01]} O-O {[%emt 0:00:10]} 9. c3 {[%emt 0:07:08]} a5 {[%emt 0:03:06]} 10. exd5 {[%emt 0:19:38]} exd5 {[%emt 0:07:42]} 11. Nb3 {[%emt 0:01:51]} b6 {[%emt 0:03:45]} 12. a4 {[%emt 0:04:45]} Ra7 {[%emt 0:08:34]} 13. d4 {[%emt 0:16:07]} c4 {[%emt 0:06:29]} 14. Nbd2 {[%emt 0:00:05]} Re8 {[%emt 0:03:18]} 15. Rxe8+ {[%emt 0:04:32]} Qxe8 {[%emt 0:02:31]} 16. b3 {[%emt 0:03:47]} cxb3 {[%emt 0:00:30]} 17. Qxb3 {[%emt 0:00:16]} Re7 {[%emt 0:00:00]} 18. Ba3 {[%emt 0:01:47]} Re6 {[%emt 0:19:45]} 19. Qxb6 {[%emt 0:10:53]} Nb4 {[%emt 0:05:51]} 20. Qb8 {[%emt 0:01:07]} Nd7 {[%emt 0:08:29]} 21. Qc7 {[%emt 0:04:04]} Nc2 {[%emt 0:02:29]} 22. Ra2 {[%emt 0:01:15]} Nxa3 {[%emt 0:00:22]} 23. Rxa3 {[%emt 0:00:03]} Nb6 {[%emt 0:03:45]} 24. Rb3 {[%emt 0:13:11]} Rc6 {[%emt 0:05:35]} 25. Qa7 {[%emt 0:00:29]} Nc4 {[%emt 0:04:57]} 26. Nxc4 {[%emt 0:02:01]} Rxc4 {[%emt 0:00:04]} 27. Bf1 {[%emt 0:01:16]} Bf8 {[%emt 0:05:26]} 28. Bxc4 {[%emt 0:01:25]} dxc4 {[%emt 0:00:04]} 29. Rb1 {[%emt 0:02:02]} Qe4 {[%emt 0:00:42]} 30. Qxf7+ {[%emt 0:00:11]} Kxf7 {[%emt 0:00:15]} 31. Ng5+ {[%emt 0:00:02]} Kf6 {[%emt 0:00:29]} 32. Nxe4+ {[%emt 0:00:02]} Kf5 {[%emt 0:00:03]} 33. f3 {[%emt 0:00:17]} Bd7 {[%emt 0:00:05]} 34. Rb6 {[%emt 0:00:17]} Be7 {[%emt 0:00:15]} 35. Ra6 {[%emt 0:00:21]} Bd8 {[%emt 0:00:24]} 36. Rd6 {[%emt 0:00:08]} 1-0

[Event "18th Charleroi Experts 2019"]
[Site "Charleroi"]
[Date "2019.08.02"]
[Round "8.2"]
[White "Hamblok, Roel"]
[Black "Ringoir, Tanguy"]
[Result "1/2-1/2"]
[ECO "E05"]
[WhiteElo "2261"]
[BlackElo "2503"]
[Annotator "ChessBase"]
[PlyCount "107"]
[EventDate "2019.07.22"]
[EventType "tourn"]
[EventCountry "BEL"]
[SourceTitle "playchess.com"]
[Source "ChessBase"]
[SourceQuality "1"]
[TimeControl "40/5400+30:1800+30"]

1. d4 {[%emt 0:00:00]} Nf6 {[%emt 0:00:00]} 2. Nf3 {[%emt 0:00:00]} d5 {[%emt 0:00:00]} 3. g3 {[%emt 0:00:00]} e6 {[%emt 0:02:18]} 4. Bg2 {[%emt 0:00:34]} Be7 {[%emt 0:00:04]} 5. O-O {[%emt 0:00:05]} O-O {[%emt 0:00:11]} 6. c4 {[%emt 0:00:05]} dxc4 {[%emt 0:00:15]} 7. Qc2 {[%emt 0:00:06]} a6 {[%emt 0:00:08]} 8. a4 {[%emt 0:00:12]} Bd7 {[%emt 0:00:06]} 9. Qxc4 {[%emt 0:00:06]} Bc6 {[%emt 0:00:06]} 10. Bg5 {[%emt 0:00:12]} Bd5 {[%emt 0:00:56]} 11. Qc2 {[%emt 0:03:23]} Be4 {[%emt 0:00:05]} 12. Qc1 {[%emt 0:00:43]} h6 {[%emt 0:04:11]} 13. Bxf6 {[%emt 0:08:27]} Bxf6 {[%emt 0:02:22]} 14. Nbd2 {[%emt 0:24:19]} Bh7 {[%emt 0:04:20]} 15. Rd1 {[%emt 0:04:23]} a5 {[%emt 0:05:50]} 16. Nc4 {[%emt 0:07:55]} c6 {[%emt 0:02:53]} 17. Qf4 {[%emt 0:09:08]} Na6 {[%emt 0:02:20]} 18. h4 {[%emt 0:08:29]} Nb4 {[%emt 0:03:12]} 19. e4 {[%emt 0:03:29]} Qb8 {[%emt 0:13:46]} 20. Qxb8 {[%emt 0:06:11]} Rfxb8 {[%emt 0:05:13]} 21. Nfe5 {[%emt 0:05:04]} Rd8 {[%emt 0:00:02]} 22. Rac1 {[%emt 0:02:25]} Be7 {[%emt 0:00:11]} 23. h5 {[%emt 0:03:13]} Kf8 {[%emt 0:21:57]} 24. Kf1 {[%emt 0:05:01]} Ke8 {[%emt 0:04:18]} 25. Ke2 {[%emt 0:00:29]} Ra6 {[%emt 0:03:20]} 26. f4 {[%emt 0:03:40]} f5 {[%emt 0:04:38]} 27. Ng6 {[%emt 0:01:31]} fxe4 28. Bxe4 {[%emt 0:00:38]} Bf6 {[%emt 0:01:05]} 29. Ke3 {[%emt 0:01:28]} Nd5+ {[%emt 0:00:02]} 30. Kf3 {[%emt 0:00:50]} Nb6 {[%emt 0:00:55]} 31. Nge5 {[%emt 0:01:36]} Bxe4+ 32. Kxe4 {[%emt 0:00:01]} Nxa4 {[%emt 0:01:30]} 33. b3 {[%emt 0:01:05]} Nb6 {[%emt 0:00:05]} 34. Ra1 {[%emt 0:00:15]} Nxc4 {[%emt 0:02:25]} 35. bxc4 {[%emt 0:00:21]} b5 {[%emt 0:00:01]} 36. Rdc1 {[%emt 0:01:47]} b4 {[%emt 0:02:01]} 37. Rcb1 {[%emt 0:00:17]} Rb8 {[%emt 0:00:23]} 38. Nd3 {[%emt 0:00:47]} Rd8 {[%emt 0:08:01]} 39. Ne5 {[%emt 0:00:12]} Bxe5 {[%emt 0:04:24]} 40. Kxe5 {[%emt 0:00:37]} Raa8 {[%emt 0:02:39]} 41. Ra4 {[%emt 0:08:00]} Ke7 {[%emt 0:09:05]} 42. Ke4 {[%emt 0:04:43]} Rdb8 {[%emt 0:05:15]} 43. Ke5 {[%emt 0:08:05]} c5 {[%emt 0:02:32]} 44. d5 {[%emt 0:04:05]} Rb6 {[%emt 0:05:20]} 45. Rba1 {[%emt 0:02:54]} b3 {[%emt 0:01:19]} 46. dxe6 {[%emt 0:00:50]} Rb4 {[%emt 0:02:17]} 47. Rxa5 {[%emt 0:02:42]} Rxa5 {[%emt 0:01:01]} 48. Rxa5 {[%emt 0:00:01]} b2 {[%emt 0:00:06]} 49. Ra7+ {[%emt 0:00:02]} Ke8 {[%emt 0:01:05]} 50. Ra8+ {[%emt 0:00:06]} Ke7 {[%emt 0:00:00]} 51. Ra7+ {[%emt 0:00:05]} Kd8 {[%emt 0:00:15]} 52. Ra8+ {[%emt 0:00:05]} Ke7 {[%emt 0:04:06]} 53. Ra7+ {[%emt 0:00:02]} Ke8 {[%emt 0:00:04]} 54. Ke4 1/2-1/2

[Event "18th Charleroi Experts 2019"]
[Site "Charleroi"]
[Date "2019.08.02"]
[Round "8.3"]
[White "Dardha, Daniel"]
[Black "Van der Stricht, Geert"]
[Result "1/2-1/2"]
[ECO "B22"]
[WhiteElo "2420"]
[BlackElo "2374"]
[Annotator "NA"]
[PlyCount "49"]
[EventDate "2019.07.22"]
[EventType "tourn"]
[EventCountry "BEL"]
[SourceTitle "playchess.com"]
[Source "ChessBase"]
[SourceQuality "1"]
[TimeControl "40/5400+30:1800+30"]

1. e4 {[%emt 0:00:00]} c5 {[%emt 0:00:00]} 2. c3 {[%emt 0:00:00]} Nf6 {[%emt 0:00:14]} 3. e5 {[%emt 0:00:31]} Nd5 {[%emt 0:00:07]} 4. d4 {[%emt 0:00:22]} cxd4 {[%emt 0:00:07]} 5. Qxd4 {[%emt 0:00:02]} e6 {[%emt 0:00:37]} 6. Nf3 {[%emt 0:00:15]} Nc6 {[%emt 0:00:53]} 7. Qe4 {[%emt 0:00:06]} d6 {[%emt 0:01:36]} 8. exd6 {[%emt 0:01:42]} Nf6 {[%emt 0:04:50]} 9. Qh4 {[%emt 0:00:59]} Bxd6 {[%emt 0:02:09]} 10. Bd3 {[%emt 0:00:30]} Be7 {[%emt 0:16:01]} 11. Bc2 {[%emt 0:00:46]} e5 {[%emt 0:13:45]} 12. O-O {[%emt 0:09:35]} Ng4 {[%emt 0:16:25]} 13. Bg5 {[%emt 0:03:58]} Bxg5 {[%emt 0:01:58]} 14. Qxg5 {[%emt 0:01:30]} Qxg5 {[%emt 0:03:35]} 15. Nxg5 {[%emt 0:00:06]} f6 {[%emt 0:11:10]} 16. Ne4 {[%emt 0:00:39]} Ke7 {[%emt 0:00:21]} 17. Na3 {[%emt 0:04:37]} Bf5 {[%emt 0:04:15]} 18. Rae1 {[%emt 0:06:13]} Bg6 {[%emt 0:07:54]} 19. f4 {[%emt 0:07:16]} Rhd8 {[%emt 0:05:04]} 20. h3 {[%emt 0:06:51]} Nh6 {[%emt 0:00:25]} 21. g4 {[%emt 0:02:24]} Rac8 {[%emt 0:03:26]} 22. fxe5 {[%emt 0:07:39]} Nxe5 {[%emt 0:02:36]} 23. Nb5 {[%emt 0:04:03]} Nhf7 {[%emt 0:00:42]} 24. Bb3 {[%emt 0:01:20]} Bxe4 {[%emt 0:00:59]} 25. Rxe4 {[%emt 0:00:08]} 1/2-1/2

[Event "18th Charleroi Experts 2019"]
[Site "Charleroi"]
[Date "2019.08.02"]
[Round "8.4"]
[White "Sterck, Arno"]
[Black "Real, Thibault"]
[Result "0-1"]
[ECO "C77"]
[WhiteElo "2316"]
[BlackElo "2262"]
[Annotator "NA"]
[PlyCount "51"]
[EventDate "2019.07.22"]
[EventType "tourn"]
[EventCountry "BEL"]
[SourceTitle "playchess.com"]
[Source "ChessBase"]
[SourceQuality "1"]
[TimeControl "40/5400+30:1800+30"]

1. e4 {[%emt 0:00:00]} e5 {[%emt 0:00:53]} 2. Nf3 {[%emt 0:00:28]} Nc6 {[%emt 0:00:05]} 3. Bb5 {[%emt 0:02:35]} a6 {[%emt 0:00:06]} 4. Ba4 {[%emt 0:00:04]} Nf6 {[%emt 0:00:34]} 5. Qe2 {[%emt 0:00:05]} b5 {[%emt 0:02:04]} 6. Bb3 {[%emt 0:00:47]} Bc5 {[%emt 0:01:36]} 7. c3 {[%emt 0:00:35]} d6 {[%emt 0:08:11]} 8. d3 {[%emt 0:04:39]} O-O {[%emt 0:00:51]} 9. Nbd2 {[%emt 0:00:03]} Be6 {[%emt 0:07:08]} 10. Bc2 {[%emt 0:01:04]} d5 {[%emt 0:02:07]} 11. h3 {[%emt 0:09:40]} d4 {[%emt 0:09:42]} 12. Ng5 {[%emt 0:09:38]} dxc3 {[%emt 0:07:39]} 13. bxc3 {[%emt 0:00:09]} b4 {[%emt 0:08:16]} 14. Nxe6 {[%emt 0:01:28]} fxe6 {[%emt 0:01:21]} 15. Nb3 {[%emt 0:00:14]} Bxf2+ {[%emt 0:03:35]} 16. Qxf2 {[%emt 0:03:58]} Nxe4 {[%emt 0:00:08]} 17. Qxf8+ {[%emt 0:00:03]} Kxf8 {[%emt 0:04:10]} 18. dxe4 {[%emt 0:00:05]} Qh4+ {[%emt 0:00:14]} 19. Ke2 {[%emt 0:00:48]} Kg8 {[%emt 0:05:42]} 20. Rf1 {[%emt 0:06:01]} bxc3 {[%emt 0:13:55]} 21. Ba3 {[%emt 0:04:53]} a5 {[%emt 0:14:30]} 22. Rf3 {[%emt 0:21:31]} Qg5 {[%emt 0:00:28]} 23. Rd1 {[%emt 0:01:52]} a4 {[%emt 0:04:05]} 24. Bc1 {[%emt 0:02:36]} Qxg2+ {[%emt 0:00:05]} 25. Rf2 {[%emt 0:00:03]} Qxh3 {[%emt 0:00:52]} 26. Nc5 {[%emt 0:03:47]} 0-1

[Event "18th Charleroi Experts 2019"]
[Site "Charleroi"]
[Date "2019.08.02"]
[Round "8.5"]
[White "Lenaerts, Lennert"]
[Black "Hovhannisyan, Mher"]
[Result "1/2-1/2"]
[ECO "E38"]
[WhiteElo "2355"]
[BlackElo "2444"]
[Annotator "NA"]
[PlyCount "40"]
[EventDate "2019.07.22"]
[EventType "tourn"]
[EventCountry "BEL"]
[SourceTitle "playchess.com"]
[Source "ChessBase"]
[SourceQuality "1"]
[TimeControl "40/5400+30:1800+30"]

1. d4 {[%emt 0:00:00]} Nf6 {[%emt 0:00:00]} 2. c4 {[%emt 0:00:00]} e6 {[%emt 0:00:00]} 3. Nc3 {[%emt 0:00:00]} Bb4 {[%emt 0:00:14]} 4. Qc2 {[%emt 0:00:00]} c5 {[%emt 0:00:53]} 5. dxc5 {[%emt 0:00:00]} Nc6 {[%emt 0:03:39]} 6. Nf3 {[%emt 0:02:55]} Bxc5 {[%emt 0:00:29]} 7. Bg5 {[%emt 0:07:52]} Nd4 {[%emt 0:00:25]} 8. Nxd4 {[%emt 0:00:43]} Bxd4 {[%emt 0:00:14]} 9. e3 {[%emt 0:00:34]} Qa5 {[%emt 0:00:19]} 10. exd4 {[%emt 0:02:38]} Qxg5 {[%emt 0:00:07]} 11. g3 {[%emt 0:04:20]} O-O {[%emt 0:08:12]} 12. Bg2 {[%emt 0:00:49]} d5 {[%emt 0:02:14]} 13. cxd5 {[%emt 0:01:21]} exd5 {[%emt 0:03:00]} 14. O-O {[%emt 0:00:09]} Be6 {[%emt 0:09:37]} 15. Rfe1 {[%emt 0:06:44]} Rac8 {[%emt 0:03:12]} 16. Qb3 {[%emt 0:10:43]} b6 {[%emt 0:01:44]} 17. Ne2 {[%emt 0:02:15]} Qd2 {[%emt 0:07:56]} 18. Rad1 {[%emt 0:07:58]} Qc2 {[%emt 0:08:12]} 19. Nc3 {[%emt 0:01:17]} Qxb3 {[%emt 0:00:47]} 20. axb3 {[%emt 0:00:02]} a5 {[%emt 0:01:09]} 1/2-1/2

[Event "18th Charleroi Experts 2019"]
[Site "Charleroi"]
[Date "2019.08.03"]
[Round "9.1"]
[White "Hovhannisyan, Mher"]
[Black "Cools, Gorik"]
[Result "1-0"]
[ECO "D84"]
[WhiteElo "2444"]
[BlackElo "2280"]
[Annotator "NA"]
[PlyCount "69"]
[EventDate "2019.07.22"]
[EventType "tourn"]
[EventCountry "BEL"]
[SourceTitle "playchess.com"]
[Source "ChessBase"]
[SourceQuality "1"]
[TimeControl "40/5400+30:1800+30"]

1. d4 {[%emt 0:00:09]} Nf6 {[%emt 0:00:00]} 2. c4 {[%emt 0:00:13]} g6 {[%emt 0:00:18]} 3. Nc3 {[%emt 0:00:05]} d5 {[%emt 0:01:15]} 4. Bf4 {[%emt 0:00:49]} Bg7 {[%emt 0:00:37]} 5. e3 {[%emt 0:00:45]} O-O {[%emt 0:07:03]} 6. cxd5 {[%emt 0:00:35]} Nxd5 {[%emt 0:00:07]} 7. Nxd5 {[%emt 0:00:04]} Qxd5 {[%emt 0:00:04]} 8. Bxc7 {[%emt 0:00:04]} Na6 {[%emt 0:00:54]} 9. Bxa6 {[%emt 0:00:17]} Qxg2 {[%emt 0:00:10]} 10. Qf3 {[%emt 0:00:04]} Qxf3 {[%emt 0:00:23]} 11. Nxf3 {[%emt 0:00:06]} bxa6 {[%emt 0:00:05]} 12. Rc1 {[%emt 0:01:23]} f6 {[%emt 0:19:01]} 13. Rg1 {[%emt 0:00:14]} Rf7 {[%emt 0:03:42]} 14. Ke2 {[%emt 0:09:08]} Bb7 {[%emt 0:04:36]} 15. b3 {[%emt 0:03:46]} Bf8 {[%emt 0:08:27]} 16. Nd2 {[%emt 0:13:53]} e6 {[%emt 0:00:15]} 17. Ba5 {[%emt 0:06:40]} Re8 {[%emt 0:10:10]} 18. h4 {[%emt 0:07:25]} Rd7 {[%emt 0:10:47]} 19. Nc4 {[%emt 0:16:03]} Rd5 {[%emt 0:13:40]} 20. Be1 {[%emt 0:03:28]} Kf7 {[%emt 0:11:57]} 21. f3 {[%emt 0:03:53]} Red8 {[%emt 0:00:25]} 22. Rc2 {[%emt 0:06:25]} Rb5 {[%emt 0:01:28]} 23. Bd2 {[%emt 0:10:16]} Rh5 {[%emt 0:01:11]} 24. Na5 {[%emt 0:16:15]} Bd5 {[%emt 0:00:05]} 25. Rc7+ {[%emt 0:00:00]} Kg8 {[%emt 0:00:06]} 26. Be1 {[%emt 0:00:00]} f5 {[%emt 0:01:15]} 27. Bg3 {[%emt 0:00:00]} f4 {[%emt 0:01:00]} 28. Bxf4 {[%emt 0:00:00]} Bxf3+ {[%emt 0:00:06]} 29. Kxf3 {[%emt 0:00:00]} Rxa5 {[%emt 0:00:01]} 30. Rxa7 {[%emt 0:00:00]} Rxa2 {[%emt 0:00:06]} 31. h5 {[%emt 0:00:00]} Bg7 {[%emt 0:01:54]} 32. hxg6 {[%emt 0:00:00]} h6 {[%emt 0:00:21]} 33. Rc1 {[%emt 0:00:00]} Rb2 {[%emt 0:02:19]} 34. Rcc7 {[%emt 0:00:00]} Bf6 {[%emt 0:00:07]} 35. Rf7 {[%emt 0:01:43]} 1-0

[Event "18th Charleroi Experts 2019"]
[Site "Charleroi"]
[Date "2019.08.03"]
[Round "9.2"]
[White "Real, Thibault"]
[Black "Lenaerts, Lennert"]
[Result "1/2-1/2"]
[ECO "D02"]
[WhiteElo "2262"]
[BlackElo "2355"]
[Annotator "NA"]
[PlyCount "40"]
[EventDate "2019.07.22"]
[EventType "tourn"]
[EventCountry "BEL"]
[SourceTitle "playchess.com"]
[Source "ChessBase"]
[SourceQuality "1"]
[TimeControl "40/5400+30:1800+30"]

1. d4 {[%emt 0:00:00]} d5 {[%emt 0:00:00]} 2. Bf4 {[%emt 0:00:00]} Nf6 {[%emt 0:00:09]} 3. e3 {[%emt 0:00:00]} e6 {[%emt 0:00:06]} 4. Nd2 {[%emt 0:00:00]} c5 {[%emt 0:00:20]} 5. c3 {[%emt 0:00:05]} Nc6 {[%emt 0:00:07]} 6. Ngf3 {[%emt 0:00:05]} cxd4 {[%emt 0:01:30]} 7. exd4 {[%emt 0:00:07]} Nh5 {[%emt 0:00:21]} 8. Be3 {[%emt 0:00:04]} Bd6 {[%emt 0:00:06]} 9. Ne5 {[%emt 0:00:13]} g6 {[%emt 0:00:17]} 10. Nd3 {[%emt 0:00:15]} Ng7 {[%emt 0:02:18]} 11. g3 {[%emt 0:00:17]} f6 {[%emt 0:02:29]} 12. Bg2 {[%emt 0:00:16]} Nf5 {[%emt 0:01:07]} 13. O-O {[%emt 0:00:27]} O-O {[%emt 0:03:47]} 14. Re1 {[%emt 0:02:10]} Nxe3 {[%emt 0:04:05]} 15. Rxe3 {[%emt 0:00:02]} Bd7 {[%emt 0:01:08]} 16. b4 {[%emt 0:22:16]} b6 {[%emt 0:07:40]} 17. a4 {[%emt 0:34:03]} Rc8 {[%emt 0:01:32]} 18. Qb3 {[%emt 0:05:31]} Kg7 {[%emt 0:05:39]} 19. Ree1 {[%emt 0:12:03]} a5 {[%emt 0:02:11]} 20. b5 {[%emt 0:03:19]} Ne7 {[%emt 1:05:08]} 1/2-1/2

[Event "18th Charleroi Experts 2019"]
[Site "Charleroi"]
[Date "2019.08.03"]
[Round "9.4"]
[White "Ringoir, Tanguy"]
[Black "Dardha, Daniel"]
[Result "1/2-1/2"]
[ECO "E08"]
[WhiteElo "2503"]
[BlackElo "2420"]
[Annotator "ChessBase"]
[PlyCount "41"]
[EventDate "2019.07.22"]
[EventType "tourn"]
[EventCountry "BEL"]
[SourceTitle "playchess.com"]
[Source "ChessBase"]
[SourceQuality "1"]
[TimeControl "40/5400+30:1800+30"]

1. d4 {[%emt 0:00:00]} Nf6 {[%emt 0:00:00]} 2. c4 {[%emt 0:00:00]} e6 {[%emt 0:00:00]} 3. Nf3 {[%emt 0:00:00]} d5 {[%emt 0:00:21]} 4. g3 {[%emt 0:00:00]} Bb4+ {[%emt 0:00:04]} 5. Bd2 {[%emt 0:00:00]} Be7 {[%emt 0:00:05]} 6. Bg2 {[%emt 0:00:04]} O-O {[%emt 0:00:06]} 7. O-O {[%emt 0:00:04]} Nbd7 {[%emt 0:00:15]} 8. Qc2 {[%emt 0:00:17]} c6 {[%emt 0:00:32]} 9. Bf4 {[%emt 0:00:12]} Ne4 {[%emt 0:01:04]} 10. Nc3 {[%emt 0:00:07]} g5 {[%emt 0:00:20]} 11. Bc1 {[%emt 0:00:36]} f5 {[%emt 0:02:17]} 12. b3 {[%emt 0:00:06]} b6 {[%emt 0:09:35]} 13. Bb2 {[%emt 0:03:17]} Bb7 {[%emt 0:04:21]} 14. Ne1 {[%emt 0:09:10]} Nd6 {[%emt 0:04:10]} 15. Rd1 {[%emt 0:09:17]} Rc8 {[%emt 0:04:47]} 16. Nd3 {[%emt 0:01:04]} Qe8 {[%emt 0:10:36]} 17. Na4 {[%emt 0:08:22]} Ba6 {[%emt 0:02:10]} 18. Nb4 {[%emt 0:03:26]} Bb7 {[%emt 0:00:21]} 19. Nd3 {[%emt 0:00:28]} Ba6 {[%emt 0:00:43]} 20. Nb4 {[%emt 0:00:04]} Bb7 {[%emt 0:00:05]} 21. Nd3 {[%emt 1:03:56]} 1/2-1/2